bitfinex-derivatives/quotes_SOLF0:USTF0_20250705
["timestamp","ask_amount","ask_price","bid_price","bid_amount"]
[1751727081417,13.40670131,147.81,147.8,2.98021266]
[1751727083018,13.40670131,147.81,147.8,9.74441266]
[1751727084518,13.40991873,147.81,147.8,9.74441266]
[1751727085523,13.42598972,147.81,147.8,9.74441266]
[1751727091422,8.52171956,147.81,147.8,9.74441266]
[1751727091621,13.42297915,147.81,147.8,9.74441266]
[1751727091821,10.91400239,147.81,147.8,9.74441266]
[1751727094428,10.91332285,147.81,147.8,9.74441266]
[1751727095024,10.91332285,147.81,147.79,6.7645]
[1751727095326,20.19383325,147.8,147.77,193.74]
[1751727095529,13.88769446,147.79,147.77,193.74]
[1751727095726,6.00468267,147.78,147.77,193.74]
[1751727095926,13.4122856,147.78,147.77,193.74]
[1751727096323,20.1774856,147.78,147.77,193.74]
[1751727097129,20.1774856,147.78,147.75,9.74884976]
[1751727097329,4.89954653,147.77,147.76,203.48854976]
[1751727097528,6.7649,147.79,147.76,203.48854976]
[1751727097728,10.88543747,147.78,147.76,203.48854976]
[1751727097930,6.7649,147.79,147.76,203.48854976]
[1751727098130,10.90032121,147.78,147.76,203.48854976]
[1751727098433,6.7649,147.79,147.77,193.76]
[1751727098625,10.89791894,147.78,147.77,193.76]
[1751727099527,17.66311894,147.78,147.77,193.76]
[1751727099727,20.1660979,147.78,147.77,193.76]
[1751727100429,17.66311894,147.78,147.77,193.76]
[1751727100625,17.66311894,147.78,147.76,2.98254976]
[1751727100835,10.89791894,147.77,147.76,196.74254976]
[1751727102531,4.90602253,147.77,147.76,196.74254976]
[1751727103234,6.7648,147.79,147.76,203.50864976]
[1751727103435,10.8450137,147.78,147.76,203.50864976]
[1751727103638,6.7648,147.79,147.76,203.50864976]
[1751727103938,10.81429567,147.78,147.77,2.98254976]
[1751727104134,5.95511401,147.78,147.77,9.74814976]
[1751727104338,6.30613879,147.82,147.77,2.98254976]
[1751727104637,10.81485428,147.81,147.79,2.98254976]
[1751727104831,5.95505097,147.8,147.79,2.98254976]
[1751727105233,11.50838855,147.84,147.79,2.98254976]
[1751727105434,18.03281251,147.83,147.79,2.98254976]
[1751727105733,13.29862601,147.82,147.81,2.98254976]
[1751727105930,10.80586899,147.82,147.81,2.98254976]
[1751727106136,10.80600683,147.82,147.81,2.98254976]
[1751727112138,10.80796361,147.82,147.81,2.98254976]
[1751727115241,10.80796361,147.82,147.8,203.50654976]
[1751727115437,6.7634,147.82,147.8,203.50654976]
[1751727129861,6.7631,147.83,147.8,203.50654976]
[1751727130054,10.95280426,147.82,147.8,203.50654976]
[1751727130255,6.7631,147.83,147.8,203.50654976]
[1751727130453,10.95297068,147.82,147.8,203.50654976]
[1751727130750,6.7631,147.83,147.81,2.98254976]
[1751727130954,10.95278534,147.82,147.81,2.98254976]
[1751727136158,10.95278534,147.82,147.81,9.74634976]
[1751727137162,4.92147505,147.82,147.81,9.74634976]
[1751727138562,4.92177283,147.82,147.81,9.74634976]
[1751727140968,10.95383777,147.82,147.81,9.74634976]
[1751727142261,17.71713777,147.82,147.81,2.98254976]
[1751727147268,20.25299851,147.82,147.81,2.98254976]
[1751727151870,13.48969851,147.82,147.81,2.98254976]
[1751727153173,13.49257687,147.82,147.81,2.98254976]
[1751727153670,13.49257687,147.82,147.81,9.74634976]
[1751727154067,6.30613879,147.84,147.81,2.98254976]
[1751727154263,6.30613879,147.84,147.83,2.98254976]
[1751727154468,6.30613879,147.85,147.84,6.7624]
[1751727154665,11.12780932,147.85,147.84,203.44494976]
[1751727154876,6.32384619,147.86,147.85,6.762]
[1751727155062,6.7604,147.89,147.85,2.98254976]
[1751727155263,6.7604,147.89,147.88,2.98254976]
[1751727160681,7.1305,147.92,147.88,2.98254976]
[1751727160882,7.1305,147.92,147.9,2.98254976]
[1751727161176,2.98254976,147.95,147.91,2.98254976]
[1751727161977,6.7587,147.93,147.91,2.98254976]
[1751727162974,6.758,147.94,147.92,2.98254976]
[1751727163179,51.15114976,147.96,147.92,2.98254976]
[1751727163882,5.39114976,147.96,147.92,2.98254976]
[1751727165685,6.7581,147.94,147.92,2.98254976]
[1751727167184,4.81830276,147.93,147.92,2.98254976]
[1751727167383,6.7581,147.94,147.92,2.98254976]
[1751727168991,6.7581,147.94,147.93,2.98254976]
[1751727172690,6.7581,147.94,147.92,2.98254976]
[1751727172993,6.7581,147.94,147.91,6.7591]
[1751727173193,6.7583,147.93,147.92,2.98254976]
[1751727175492,6.758,147.94,147.92,2.98254976]
[1751727175695,6.758,147.94,147.93,2.98254976]
[1751727180099,6.758,147.94,147.92,2.98254976]
[1751727182301,6.758,147.94,147.93,2.98254976]
[1751727192709,6.758,147.94,147.92,2.98254976]
[1751727194309,6.7576,147.95,147.93,2.98254976]
[1751727194809,6.7576,147.95,147.93,9.74074976]
[1751727195302,6.7576,147.95,147.93,2.98254976]
[1751727197511,6.7576,147.95,147.93,9.74074976]
[1751727198107,6.7576,147.95,147.94,2.98254976]
[1751727198308,17.60040941,147.95,147.94,2.98254976]
[1751727198708,17.60040941,147.95,147.93,9.74074976]
[1751727199009,6.7576,147.95,147.93,9.74074976]
[1751727199311,6.00494359,147.94,147.93,9.74074976]
[1751727200307,10.86250735,147.94,147.93,9.74074976]
[1751727203112,10.86250735,147.94,147.93,2.98254976]
[1751727210422,13.32571513,147.94,147.93,2.98254976]
[1751727212424,13.32571513,147.94,147.93,9.74084976]
[1751727213024,10.86250735,147.94,147.93,9.74084976]
[1751727214325,13.3280476,147.94,147.93,9.74084976]
[1751727215522,10.86250735,147.94,147.93,9.74084976]
[1751727223332,4.85756376,147.94,147.93,9.74084976]
[1751727224829,71.24956839,147.98,147.95,6.7572]
[1751727225028,13.36565864,147.97,147.96,2.98254976]
[1751727226032,14.0934397,147.97,147.95,2.98254976]
[1751727226236,13.36291791,147.96,147.95,2.98254976]
[1751727227824,6.02597821,147.96,147.95,2.98254976]
[1751727236337,6.02597821,147.96,147.95,9.73994976]
[1751727236840,10.86608569,147.96,147.95,9.73994976]
[1751727238151,10.86589104,147.96,147.95,9.73994976]
[1751727243051,6.02597821,147.96,147.95,9.73994976]
[1751727243250,10.86494895,147.96,147.95,9.73994976]
[1751727243453,4.83897074,147.96,147.95,9.73994976]
[1751727243651,64.92372975,147.98,147.95,9.73994976]
[1751727243850,10.86951317,147.97,147.96,2.98254976]
[1751727245256,10.86951317,147.97,147.96,9.73944976]
[1751727245647,6.7557,147.99,147.96,2.98254976]
[1751727245847,10.86802207,147.98,147.91,45.72]
[1751727246047,6.7557,147.99,147.91,45.72]
[1751727246260,10.86810478,147.98,147.91,45.72]
[1751727246454,6.7557,147.99,147.91,45.72]
[1751727246654,10.86699369,147.98,147.96,6.7566]
[1751727246950,6.02958355,147.97,147.96,6.7566]
[1751727247155,10.86725712,147.97,147.96,9.73914976]
[1751727249157,6.02958355,147.97,147.96,9.73914976]
[1751727249357,10.83473938,147.97,147.96,9.73914976]
[1751727249957,10.83473938,147.97,147.96,2.98254976]
[1751727250158,6.02958355,147.97,147.96,2.98254976]
[1751727250361,10.83474451,147.97,147.96,2.98254976]
[1751727251160,6.02958355,147.97,147.96,2.98254976]
[1751727251460,10.8348033,147.97,147.96,2.98254976]
[1751727251661,10.8348033,147.97,147.96,9.73944976]
[1751727252056,6.02958355,147.97,147.96,9.73944976]
[1751727252262,10.83470776,147.97,147.96,9.73944976]
[1751727254867,4.80512421,147.97,147.96,9.73944976]
[1751727255060,10.83604843,147.97,147.96,9.73944976]
[1751727255371,4.80512421,147.97,147.96,9.73944976]
[1751727255560,6.7554,148.0,147.97,6.7564]
[1751727255762,13.29292184,147.99,147.97,9.73894976]
[1751727255964,10.84688221,147.98,147.97,9.73894976]
[1751727258071,10.8369736,147.98,147.97,9.73894976]
[1751727258971,10.8369736,147.98,147.97,6.7564]
[1751727261674,10.8369736,147.98,147.96,9.73924976]
[1751727261874,10.8369736,147.97,147.96,9.73924976]
[1751727263576,10.8369736,147.97,147.95,45.7]
[1751727263769,13.83162913,147.96,147.91,45.68]
[1751727263974,6.03067841,147.95,147.93,2.98254976]
[1751727264270,6.03067841,147.94,147.93,2.98254976]
[1751727264875,10.82373779,147.98,147.93,2.98254976]
[1751727265070,6.32303779,147.99,147.97,2.98254976]
[1751727265272,13.3097777,147.98,147.97,2.98254976]
[1751727266878,18.20848167,147.98,147.97,9.73904976]
[1751727268881,10.86059682,147.98,147.97,9.73904976]
[1751727272381,13.31315805,147.98,147.97,9.73904976]
[1751727274085,10.86059682,147.98,147.97,9.73904976]
[1751727278583,6.04157261,147.98,147.97,9.73904976]
[1751727278785,10.87308149,147.98,147.97,9.73904976]
[1751727288993,10.87308149,147.98,147.97,6.7565]
[1751727289195,10.87308149,147.98,147.97,9.73904976]
[1751727293197,10.87308149,147.98,147.96,52.4368]
[1751727293402,6.04157261,147.97,147.96,55.41934976]
[1751727293700,6.04157261,147.97,147.96,52.4368]
[1751727294704,6.7553,148.0,147.98,6.756]
[1751727294903,10.86732818,147.99,147.98,6.756]
[1751727304511,10.86632,147.99,147.98,6.756]
[1751727319529,6.05309872,147.99,147.98,6.756]
[1751727319728,10.87524338,147.99,147.98,6.756]
[1751727321924,6.05309872,147.99,147.98,6.756]
[1751727323132,11.2986,148.02,147.99,6.7552]
[1751727323332,13.33374918,148.01,147.99,6.7552]
[1751727323531,10.88045159,148.0,147.99,6.7552]
[1751727325334,6.05998113,148.0,147.99,6.7552]
[1751727325730,6.05998113,148.0,147.99,200.0752]
[1751727330241,9.0394,148.03,148.0,6.7549]
[1751727330533,13.32882954,148.02,148.0,6.7549]
[1751727330728,10.87756388,148.01,148.0,6.7549]
[1751727330931,4.81645226,148.01,148.0,6.7549]
[1751727331133,10.87756388,148.01,148.0,6.7549]
[1751727334941,6.06111162,148.01,148.0,6.7549]
[1751727336534,6.7535,148.04,148.0,6.7549]
[1751727336740,10.86233742,148.03,148.0,6.7549]
[1751727336940,10.86233742,148.02,148.0,6.7549]
[1751727337242,6.7535,148.04,148.0,6.7549]
[1751727337442,10.86124116,148.03,148.0,6.7549]
[1751727337643,10.86124116,148.02,148.0,6.7549]
[1751727337840,6.7535,148.04,148.0,6.7549]
[1751727338040,10.86124116,148.03,148.0,6.7549]
[1751727338241,6.02627337,148.02,148.0,6.7549]
[1751727338436,6.7537,148.03,148.0,6.7549]
[1751727338637,6.0257888,148.02,148.0,6.7549]
[1751727338838,6.7537,148.03,148.0,6.7549]
[1751727339136,10.86052495,148.02,148.0,6.7549]
[1751727339337,6.7537,148.03,148.0,6.7549]
[1751727339638,6.02541653,148.02,148.0,6.7549]
[1751727339838,6.7537,148.03,148.0,6.7549]
[1751727340043,10.87001708,148.02,148.0,6.7549]
[1751727340232,6.7537,148.03,148.0,6.7549]
[1751727340437,6.02492364,148.02,148.0,6.7549]
[1751727340742,6.7537,148.03,148.0,6.7549]
[1751727341042,6.0249217,148.02,148.0,6.7549]
[1751727341242,6.7537,148.03,148.0,6.7549]
[1751727341543,6.02449664,148.02,148.01,6.7546]
[1751727342846,6.7535,148.04,148.01,6.7546]
[1751727343042,10.82387307,148.03,148.01,6.7546]
[1751727343240,6.7535,148.04,148.01,6.7546]
[1751727343439,10.82304327,148.03,148.01,6.7546]
[1751727343742,6.7535,148.04,148.01,6.7546]
[1751727344036,10.8230857,148.03,148.01,6.7546]
[1751727344344,6.7535,148.04,148.01,6.7546]
[1751727344534,10.82245058,148.03,148.01,6.7546]
[1751727344734,6.7535,148.04,148.01,6.7546]
[1751727344933,10.82245058,148.03,148.01,6.7546]
[1751727345135,6.7535,148.04,148.01,6.7546]
[1751727345335,10.82181059,148.03,148.01,6.7546]
[1751727345548,6.7538,148.03,148.0,52.4149]
[1751727347750,6.7538,148.03,148.01,9.73714976]
[1751727353858,6.7538,148.03,148.02,2.98254976]
[1751727354057,17.57523843,148.03,148.02,2.98254976]
[1751727358754,17.57523843,148.03,148.01,9.73714976]
[1751727358960,6.7538,148.03,148.01,9.73714976]
[1751727359760,6.7538,148.03,148.01,2.98254976]
[1751727359958,6.7538,148.03,147.94,583.38]
[1751727359959,16.22321307,148.02,147.98,45.64]
[1751727360256,10.82502684,148.01,148.0,6.7551]
[1751727360557,6.7536,148.04,148.0,2.97318864]
[1751727360757,10.82534994,148.03,148.01,2.97318864]
[1751727360961,6.7536,148.04,148.01,9.72768864]
[1751727361257,10.82534994,148.03,148.01,6.7545]
[1751727361457,6.03332948,148.02,148.0,9.72798864]
[1751727361657,6.03332948,148.01,148.0,9.72798864]
[1751727362156,6.03332948,148.01,147.99,196.23318864]
[1751727362459,10.82584776,148.0,147.99,193.28]
[1751727362756,10.82584776,148.0,147.97,45.64]
[1751727362960,10.82584776,147.99,147.97,238.94]
[1751727363162,2.97369511,148.0,147.97,238.94]
[1751727363360,13.80151352,147.99,147.97,45.64]
[1751727363568,10.82781841,147.98,147.97,48.61369511]
[1751727363957,6.02962765,147.98,147.97,55.37019511]
[1751727364159,6.7151,148.01,147.97,55.37019511]
[1751727364358,18.17837867,148.0,147.98,2.97369511]
[1751727364561,10.82661782,147.99,147.98,2.97369511]
[1751727364762,10.82674842,147.99,147.98,9.72969511]
[1751727366064,10.82554307,147.99,147.98,9.72969511]
[1751727366460,6.02782108,147.99,147.98,9.72969511]
[1751727367762,6.02782108,147.99,147.98,2.97369511]
[1751727367965,10.78319769,147.99,147.98,2.97369511]
[1751727369068,10.78319769,147.99,147.98,9.72969511]
[1751727369262,6.02782108,147.99,147.98,9.72969511]
[1751727370767,6.7551,148.0,147.98,9.72969511]
[1751727378882,6.00496487,147.99,147.98,9.72969511]
[1751727379580,6.7551,148.0,147.97,55.36989511]
[1751727381785,6.7551,148.0,147.97,52.3962]
[1751727381985,6.7551,148.0,147.98,2.97369511]
[1751727382881,6.7151,148.01,147.98,2.97369511]
[1751727382882,6.7556,147.99,147.98,2.97369511]
[1751727383187,11.56510728,147.99,147.97,48.61369511]
[1751727383385,6.7556,147.99,147.97,48.61369511]
[1751727384784,6.7556,147.99,147.97,45.64]
[1751727385587,6.7556,147.99,147.97,52.3964]
[1751727385780,6.7556,147.99,147.97,55.37009511]
[1751727386384,6.7553,148.0,147.97,55.37009511]
[1751727386587,4.80876387,147.99,147.97,55.37009511]
[1751727386789,6.7553,148.0,147.97,55.37009511]
[1751727386989,4.80876387,147.99,147.97,55.37009511]
[1751727387288,6.7553,148.0,147.97,55.37009511]
[1751727387586,4.80867636,147.99,147.97,55.37009511]
[1751727387787,6.7553,148.0,147.97,52.3964]
[1751727388089,4.80867636,147.99,147.98,2.97369511]
[1751727388286,6.7553,148.0,147.98,2.97369511]
[1751727388486,6.7553,148.0,147.99,193.38]
[1751727388689,17.54693985,148.0,147.99,193.38]
[1751727396299,20.00680089,148.0,147.99,193.38]
[1751727397300,14.00324522,148.0,147.99,193.38]
[1751727397598,20.00621813,148.0,147.99,193.38]
[1751727401305,24.89136253,148.0,147.99,193.38]
[1751727402204,24.89260918,148.0,147.99,193.38]
[1751727404899,18.13730918,148.0,147.99,196.35304069]
[1751727405305,10.79381619,148.0,147.99,196.35304069]
[1751727405502,10.79381619,148.0,147.99,203.10864069]
[1751727407706,6.00297291,148.0,147.99,203.10864069]
[1751727408102,6.00297291,148.0,147.99,203.10715425]
[1751727408407,6.31165585,148.04,148.02,6.7541]
[1751727408606,13.06455585,148.05,148.03,193.32]
[1751727408803,18.16077011,148.04,148.03,193.32]
[1751727409505,6.0057153,148.04,148.03,193.32]
[1751727409807,12.31737115,148.04,148.03,193.32]
[1751727409996,14.77669259,148.04,148.03,193.32]
[1751727410408,8.46503674,148.04,148.03,193.32]
[1751727410908,10.81222386,148.04,148.03,203.04525425]
[1751727411207,6.0057153,148.04,148.03,203.04525425]
[1751727414508,6.7524,148.06,148.03,203.04525425]
[1751727414812,10.8153398,148.05,148.04,2.97155425]
[1751727416009,10.8153398,148.05,148.03,203.04525425]
[1751727416210,6.7524,148.06,148.03,203.04525425]
[1751727416418,10.85222146,148.05,148.03,203.04525425]
[1751727416713,6.7528,148.05,148.03,203.04525425]
[1751727417512,6.7526,148.06,148.03,203.04525425]
[1751727417813,10.86643678,148.05,148.03,203.04525425]
[1751727418011,6.7526,148.06,148.03,203.04525425]
[1751727418310,6.02988069,148.05,148.03,203.04525425]
[1751727418610,6.7526,148.06,148.03,203.04525425]
[1751727418811,6.0287065,148.05,148.03,203.04525425]
[1751727419012,6.7529,148.05,148.03,196.29155425]
[1751727420613,6.7533,148.04,148.03,193.32]
[1751727420816,2.97155425,148.06,148.03,193.32]
[1751727421007,6.02734258,148.05,148.03,193.32]
[1751727421202,2.97155425,148.06,148.03,193.32]
[1751727421408,6.02667191,148.05,148.03,193.32]
[1751727421612,6.7528,148.05,148.03,193.32]
[1751727422111,6.7533,148.04,148.03,193.32]
[1751727422313,20.58675054,148.04,148.03,193.32]
[1751727422509,20.58675054,148.04,148.0,48.65155425]
[1751727422814,6.7533,148.04,148.01,196.31155425]
[1751727423212,6.7533,148.04,148.01,203.06605425]
[1751727424515,6.7533,148.04,148.02,2.97155425]
[1751727427416,6.7533,148.04,148.02,196.29155425]
[1751727428321,6.7533,148.04,148.02,193.32]
[1751727430725,6.7537,148.03,148.02,193.32]
[1751727432626,6.7537,148.03,148.01,2.97155425]
[1751727432822,6.7537,148.03,148.02,193.3]
[1751727435632,17.5696758,148.03,148.02,193.3]
[1751727437130,6.7544,148.02,148.01,193.3]
[1751727437431,12.76629525,148.02,148.01,193.32]
[1751727437626,17.57211825,148.02,148.01,193.32]
[1751727443538,17.57211825,148.02,148.01,193.3]
[1751727443940,17.56507742,148.02,148.01,193.3]
[1751727444540,17.56566224,148.02,148.01,193.3]
[1751727445737,10.81126224,148.02,148.01,193.3]
[1751727446845,10.81271132,148.02,148.01,193.3]
[1751727447744,10.81271132,148.02,148.0,45.68]
[1751727447945,9.2832101,148.04,148.01,193.3]
[1751727448245,6.7545,148.02,148.01,193.3]
[1751727448445,17.57077584,148.02,148.01,193.3]
[1751727449244,20.03433707,148.02,148.01,193.3]
[1751727449940,20.03433707,148.02,148.0,45.68]
[1751727450144,6.7545,148.02,148.01,193.3]
[1751727450444,20.03824323,148.02,148.01,193.3]
[1751727457547,20.03913961,148.02,148.01,193.3]
[1751727459444,17.57558924,148.02,148.01,193.3]
[1751727459644,10.82108924,148.02,148.01,203.02615425]
[1751727459844,10.82108924,148.02,148.01,200.0546]
[1751727460145,10.82108924,148.02,148.01,203.02615425]
[1751727460750,10.82108924,148.02,148.01,196.27155425]
[1751727465244,20.54684349,148.02,148.01,193.3]
[1751727466450,27.9601304,148.02,148.01,193.3]
[1751727468848,24.98857615,148.02,148.01,193.3]
[1751727474456,20.05787298,148.02,148.01,193.3]
[1751727477058,25.00534262,148.02,148.01,193.3]
[1751727477858,18.25114262,148.02,148.01,193.3]
[1751727478054,13.30367298,148.02,148.01,193.3]
[1751727478358,10.83582916,148.02,148.01,200.0546]
[1751727478860,10.83582916,148.02,148.01,203.02615425]
[1751727480158,10.83582916,148.02,148.01,196.27155425]
[1751727482064,17.59002916,148.02,148.01,193.3]
[1751727483064,10.83582916,148.02,148.01,193.3]
[1751727485569,6.03244317,148.02,148.01,193.3]
[1751727485760,10.85234398,148.02,148.01,193.3]
[1751727487670,10.85234398,148.02,148.01,196.27155425]
[1751727488765,6.03244317,148.02,148.01,196.27155425]
[1751727489355,10.85110116,148.02,148.01,196.27155425]
[1751727493473,10.85094295,148.02,148.01,196.27155425]
[1751727497675,10.85094295,148.02,148.01,193.3]
[1751727498079,10.85094295,148.02,148.01,200.0546]
[1751727499985,10.85094295,148.02,148.01,200.0346]
[1751727500484,25.03543563,148.02,148.01,193.28]
[1751727500783,25.04560371,148.02,148.01,193.28]
[1751727503280,13.33289592,148.02,148.01,193.28]
[1751727503485,10.86111103,148.02,148.01,193.28]
[1751727505789,17.61531103,148.02,148.01,193.28]
[1751727506489,25.01754605,148.02,148.01,193.28]
[1751727508193,25.01748647,148.02,148.01,193.28]
[1751727510389,17.61531103,148.02,148.01,193.28]
[1751727511294,10.86111103,148.02,148.01,193.28]
[1751727514286,13.32791232,148.02,148.01,193.28]
[1751727514796,13.32791232,148.02,148.01,203.00700831]
[1751727514997,6.04261125,148.02,148.01,203.00700831]
[1751727515199,6.7531,148.05,148.03,6.7536]
[1751727515399,6.7531,148.05,148.04,196.25062581]
[1751727515600,24.99067395,148.05,148.04,196.25062581]
[1751727517298,20.05605732,148.05,148.04,196.25062581]
[1751727517598,20.05605732,148.05,148.04,193.28]
[1751727518191,13.30295732,148.05,148.04,193.28]
[1751727520298,13.30295732,148.05,148.04,196.25062581]
[1751727520501,10.83674949,148.05,148.04,203.00392581]
[1751727520706,10.83674949,148.05,148.04,196.25062581]
[1751727530307,10.87354507,148.05,148.04,196.25062581]
[1751727532410,6.01555096,148.05,148.04,196.25062581]
[1751727541116,6.7524,148.06,148.04,196.25062581]
[1751727542619,6.7524,148.06,148.04,193.28]
[1751727542820,21.28050396,148.05,148.02,193.22]
[1751727543016,7.82677953,148.04,148.0,2.97062581]
[1751727543221,4.85615372,148.03,148.01,196.19062581]
[1751727543419,6.7537,148.04,148.01,196.19062581]
[1751727543619,10.87957167,148.03,148.01,196.19062581]
[1751727543819,6.7537,148.04,148.01,196.19062581]
[1751727544018,10.87969201,148.03,148.01,196.19062581]
[1751727544217,6.7537,148.03,148.01,196.19062581]
[1751727547116,6.7537,148.03,148.01,2.97062581]
[1751727547320,6.7537,148.03,148.02,193.22]
[1751727547522,17.61437209,148.03,148.02,193.22]
[1751727550624,10.86067209,148.03,148.02,193.22]
[1751727550922,10.86067209,148.03,148.02,196.19062581]
[1751727554830,10.86067209,148.03,148.02,193.22]
[1751727555032,10.86067209,148.03,148.02,196.19062581]
[1751727560236,6.02357689,148.03,148.02,196.19062581]
[1751727560840,10.85793476,148.03,148.02,196.19062581]
[1751727569958,10.85793476,148.03,148.02,202.94492581]
[1751727570147,10.85793476,148.03,148.02,196.19062581]
[1751727572557,17.61173476,148.03,148.02,193.22]
[1751727573460,10.85793476,148.03,148.02,193.22]
[1751727574262,10.85793476,148.03,148.01,9.72532581]
[1751727574557,6.7536,148.04,148.02,193.22]
[1751727574759,10.82238679,148.03,148.02,193.22]
[1751727578360,10.81344956,148.03,148.02,193.22]
[1751727581358,10.81494866,148.03,148.02,193.22]
[1751727585365,17.56874866,148.03,148.02,193.22]
[1751727587166,20.03299752,148.03,148.02,193.22]
[1751727590374,12.74047151,148.03,148.02,193.22]
[1751727590568,20.03082811,148.03,148.02,193.22]
[1751727591468,14.0441566,148.03,148.02,193.22]
[1751727591771,20.03355926,148.03,148.02,193.22]
[1751727594571,21.16846928,148.03,148.0,45.64]
[1751727594777,21.16846928,148.02,148.01,193.2]
[1751727595271,27.92276928,148.02,148.01,193.2]
[1751727597072,6.7547,148.01,148.0,238.84]
[1751727597274,20.03445926,148.01,148.0,238.84]
[1751727599083,17.57006094,148.01,148.0,238.84]
[1751727599374,17.56531729,148.01,148.0,238.84]
[1751727599580,20.01836509,148.01,148.0,238.84]
[1751727600375,20.01836509,148.01,147.97,6.7562]
[1751727600580,17.56581729,148.0,147.98,196.19062581]
[1751727600780,6.7552,148.0,147.98,196.19062581]
[1751727601477,6.7552,148.0,147.98,2.97062581]
[1751727601686,10.76335854,147.99,147.96,48.61062581]
[1751727601875,2.97062581,148.0,147.97,193.22]
[1751727602179,2.97062581,147.98,147.86,31.52901788]
[1751727602377,2.97062581,147.98,147.94,2.97062581]
[1751727602684,2.97062581,147.98,147.95,193.22]
[1751727602883,5.96188757,147.97,147.95,193.22]
[1751727603085,9.72702581,147.98,147.95,193.22]
[1751727603373,5.96190895,147.97,147.95,193.22]
[1751727603582,6.7565,147.97,147.95,193.22]
[1751727605976,6.757,147.96,147.95,193.22]
[1751727606181,6.757,147.96,147.95,193.24]
[1751727606382,2.97062581,147.97,147.95,193.24]
[1751727606683,9.72732581,147.97,147.95,193.24]
[1751727607181,9.72712581,147.97,147.96,193.24]
[1751727607370,2.97062581,147.97,147.96,193.24]
[1751727607575,2.97062581,147.97,147.94,45.62]
[1751727607775,2.97062581,147.95,147.94,45.62]
[1751727607975,9.72842581,147.95,147.94,193.24]
[1751727610987,9.72842581,147.95,147.94,193.26]
[1751727615092,9.72842581,147.95,147.91,9.72982581]
[1751727615286,6.7579,147.94,147.92,193.28]
[1751727615795,6.7577,147.95,147.92,203.00942581]
[1751727619795,6.7577,147.95,147.92,200.0388]
[1751727619995,6.7577,147.95,147.92,203.00942581]
[1751727622894,6.7571,147.96,147.94,2.97062581]
[1751727625101,6.7571,147.96,147.93,6.7583]
[1751727625302,6.7571,147.96,147.94,2.97062581]
[1751727627001,6.7575,147.95,147.93,9.72892581]
[1751727627401,6.7575,147.95,147.94,193.3]
[1751727628902,2.97062581,147.95,147.9,48.61062581]
[1751727629202,2.97062581,147.94,147.91,193.3]
[1751727629402,6.7586,147.93,147.91,193.3]
[1751727630705,6.7586,147.93,147.9,55.37032581]
[1751727630907,6.7586,147.93,147.91,193.3]
[1751727631303,6.7589,147.92,147.9,48.61062581]
[1751727631503,2.97062581,147.93,147.9,45.64]
[1751727631702,2.97062581,147.92,147.9,238.94]
[1751727631898,10.10227266,147.96,147.91,2.97062581]
[1751727632103,4.69975462,147.95,147.92,2.97062581]
[1751727632307,6.7578,147.95,147.92,2.97062581]
[1751727632708,7.61832581,147.98,147.93,2.97062581]
[1751727632901,5.90135518,147.97,147.94,193.38]
[1751727633106,7.61832581,147.98,147.94,193.38]
[1751727633307,5.90241727,147.97,147.94,193.38]
[1751727633611,6.7572,147.96,147.94,193.38]
[1751727634313,6.7572,147.96,147.94,196.35062581]
[1751727634914,6.7572,147.96,147.94,193.38]
[1751727637509,6.7567,147.97,147.94,193.38]
[1751727638014,6.7567,147.97,147.94,196.35062581]
[1751727638310,5.92396925,147.96,147.94,196.35062581]
[1751727638614,6.7567,147.97,147.94,196.35062581]
[1751727638815,5.92420326,147.96,147.94,196.35062581]
[1751727639017,6.7567,147.97,147.94,196.35062581]
[1751727639313,5.92420326,147.96,147.94,196.35062581]
[1751727639510,6.7567,147.97,147.94,196.35062581]
[1751727639716,5.92725666,147.96,147.94,196.35062581]
[1751727639911,6.7567,147.97,147.94,196.35062581]
[1751727640107,5.92725666,147.96,147.94,196.35062581]
[1751727640317,6.7567,147.97,147.94,196.35062581]
[1751727640517,5.92840408,147.96,147.94,196.35062581]
[1751727640718,6.7567,147.97,147.94,196.35062581]
[1751727640917,5.92840408,147.96,147.94,196.35062581]
[1751727641217,2.97062581,147.98,147.94,196.35062581]
[1751727641417,10.66179914,147.97,147.94,196.35062581]
[1751727641619,5.92971328,147.96,147.94,196.35062581]
[1751727641916,2.97062581,147.98,147.94,196.35062581]
[1751727642116,10.66203261,147.97,147.94,196.35062581]